fUST/lending_fUST_20260304
["ID","MTS","AMOUNT","RATE_DAILY","PERIOD"]
[407592387,1772559044439,-506.14,0.00010958,2]
[407592388,1772559044449,-5275.18,0.00010958,2]
[407592389,1772559044458,-2370.65484087,0.00010958,2]
[407592400,1772559044578,-24839.03371928,0.00010958,2]
[407592402,1772559044590,-500.0,0.00010958,2]
[407592404,1772559044602,-500.0,0.00010958,2]
[407592406,1772559044611,-500.0,0.00010958,2]
[407592408,1772559044621,-500.0,0.00010958,2]
[407592410,1772559044631,-500.0,0.00010958,2]
[407592412,1772559044640,-500.0,0.00010958,2]
[407592414,1772559044649,-500.0,0.00010958,2]
[407592416,1772559044659,-500.0,0.00010958,2]
[407592418,1772559044669,-500.0,0.00010958,2]
[407592420,1772559044678,-500.0,0.00010958,2]
[407592422,1772559044687,-500.0,0.00010958,2]
[407592424,1772559044696,-500.0,0.00010958,2]
[407592426,1772559044705,-500.0,0.00010958,2]
[407592428,1772559044717,-1335.41,0.00010958,2]
[407592430,1772559044726,-1049.99,0.00010958,2]
[407592432,1772559044735,-500.0,0.00010958,2]
[407592434,1772559044744,-500.0,0.00010958,2]
[407592436,1772559044753,-500.0,0.00010958,2]
[407592438,1772559044763,-500.0,0.00010958,2]
[407592440,1772559044774,-2678.39,0.00010958,2]
[407592442,1772559044784,-517.83,0.00010958,2]
[407592444,1772559044794,-852.66,0.00010958,2]
[407592446,1772559044803,-247.57672368,0.00010958,2]
[407592448,1772559044813,-1212.29,0.00010958,2]
[407592450,1772559044823,-500.0,0.00010958,2]
[407592452,1772559044832,-500.0,0.00010958,2]
[407592454,1772559044842,-500.0,0.00010958,2]
[407592456,1772559044852,-1273.64,0.00010958,2]
[407592458,1772559044861,-500.0,0.00010958,2]
[407592460,1772559044870,-500.0,0.00010958,2]
[407592462,1772559044880,-1551.21,0.00010958,2]
[407592464,1772559044889,-500.0,0.00010958,2]
[407592466,1772559044899,-2292.67,0.00010958,2]
[407592468,1772559044908,-500.0,0.00010958,2]
[407592470,1772559044917,-500.0,0.00010958,2]
[407592472,1772559044926,-856.58,0.00010958,2]
[407592474,1772559044936,-1370.38,0.00010958,2]
[407592476,1772559044946,-500.0,0.00010958,2]
[407592478,1772559044955,-631.98,0.00010958,2]
[407592480,1772559044965,-1540.64,0.00010958,2]
[407592482,1772559044976,-1542.92,0.00010958,2]
[407592484,1772559044985,-500.0,0.00010958,2]
[407592486,1772559044995,-500.0,0.00010958,2]
[407592488,1772559045004,-1468.66,0.00010958,2]
[407592490,1772559045016,-500.0,0.00010958,2]
[407592492,1772559045027,-4951.1,0.00010958,2]
[407592494,1772559045038,-500.0,0.00010958,2]
[407592496,1772559045049,-1068.16,0.00010958,2]
[407592498,1772559045059,-500.0,0.00010958,2]
[407592500,1772559045069,-1249.37,0.00010958,2]
[407592502,1772559045079,-668.29,0.00010958,2]
[407592504,1772559045090,-502.8438901,0.00010958,2]
[407592506,1772559045100,-11782.22,0.00010958,2]
[407592508,1772559045110,-1217.95,0.00010958,2]
[407592510,1772559045120,-162.52751334,0.00010958,2]
[407592512,1772559045130,-663.5,0.00010958,2]
[407592514,1772559045140,-7940.2,0.00010958,2]
[407592516,1772559045149,-651.28,0.00010958,2]
[407592518,1772559045158,-1063.24,0.00010958,2]
[407592520,1772559045167,-556.86,0.00010958,2]
[407592522,1772559045176,-500.0,0.00010958,2]
[407592524,1772559045186,-500.0,0.00010958,2]
[407592526,1772559045195,-500.0,0.00010958,2]
[407592528,1772559045204,-709.12,0.00010958,2]
[407592530,1772559045214,-500.0,0.00010958,2]
[407592532,1772559045223,-723.72,0.00010958,2]
[407592534,1772559045232,-500.0,0.00010958,2]
[407592536,1772559045242,-500.0,0.00010958,2]
[407592538,1772559045252,-500.0,0.00010958,2]
[407592540,1772559045261,-1870.64,0.00010958,2]
[407592542,1772559045270,-500.0,0.00010958,2]
[407592543,1772559045285,-1079.55,0.00010958,2]
[407592545,1772559045304,-500.0,0.00010958,2]
[407592548,1772559045314,-500.0,0.00010958,2]
[407592549,1772559045324,-500.0,0.00010958,2]
[407592552,1772559045334,-819.05,0.00010958,2]
[407592553,1772559045343,-500.0,0.00010958,2]
[407592555,1772559045353,-500.0,0.00010958,2]
[407592557,1772559045362,-799.05,0.00010958,2]
[407592559,1772559045371,-500.0,0.00010958,2]
[407592561,1772559045381,-500.0,0.00010958,2]
[407592564,1772559045391,-612.72,0.00010958,2]
[407592587,1772559045607,-500.0,0.00010958,2]
[407592589,1772559045617,-500.0,0.00010958,2]
[407592591,1772559045627,-623.02,0.00010958,2]
[407592593,1772559045638,-1519.5,0.00010958,2]
[407592595,1772559045647,-500.0,0.00010958,2]
[407592597,1772559045657,-1050.45,0.00010958,2]
[407592599,1772559045667,-1620.49,0.00010958,2]
[407592601,1772559045677,-500.0,0.00010958,2]
[407592603,1772559045686,-1186.25,0.00010958,2]
[407592605,1772559045695,-2572.81,0.00010958,2]
[407592607,1772559045706,-500.0,0.00010958,2]
[407592609,1772559045715,-500.0,0.00010958,2]
[407592611,1772559045726,-500.0,0.00010958,2]
[407592613,1772559045737,-7809.26,0.00010958,2]
[407592615,1772559045747,-223.94363621,0.00010958,2]
[407592617,1772559045758,-500.0,0.00010958,2]
[407592619,1772559045768,-1964.92,0.00010958,2]
[407592621,1772559045778,-1372.67,0.00010958,2]
[407592623,1772559045789,-500.0,0.00010958,2]
[407592626,1772559045803,-3344.59,0.00010958,2]
[407592627,1772559045813,-510.71,0.00010958,2]
[407592630,1772559045824,-500.0,0.00010958,2]
[407592632,1772559045834,-1910.98,0.00010958,2]
[407592634,1772559045844,-500.0,0.00010958,2]
[407592636,1772559045853,-500.0,0.00010958,2]
[407592638,1772559045862,-503.11,0.00010958,2]
[407592640,1772559045872,-4629.24,0.00010958,2]
[407592642,1772559045883,-500.0,0.00010958,2]
[407592643,1772559045893,-500.0,0.00010958,2]
[407592645,1772559045902,-1006.24,0.00010958,2]
[407592648,1772559045912,-500.0,0.00010958,2]
[407592649,1772559045921,-1122.77,0.00010958,2]
[407592651,1772559045932,-500.0,0.00010958,2]
[407592653,1772559045942,-2286.74,0.00010958,2]
[407592656,1772559045952,-2604.64,0.00010958,2]
[407592658,1772559045963,-17688.04,0.00010958,2]
[407592660,1772559045973,-500.0,0.00010958,2]
[407592662,1772559045982,-1073.44,0.00010958,2]
[407592664,1772559045991,-584.52,0.00010958,2]
[407592666,1772559046000,-2531.46,0.00010958,2]
[407592667,1772559046010,-500.0,0.00010958,2]
[407592669,1772559046019,-500.0,0.00010958,2]
[407592671,1772559046029,-3102.5,0.00010958,2]
[407592674,1772559046039,-2060.88,0.00010958,2]
[407592675,1772559046050,-500.0,0.00010958,2]
[407592677,1772559046060,-500.0,0.00010958,2]
[407592679,1772559046070,-500.0,0.00010958,2]
[407592682,1772559046080,-5071.7,0.00010958,2]
[407592684,1772559046090,-4392.59,0.00010958,2]
[407592685,1772559046100,-500.0,0.00010958,2]
[407592687,1772559046110,-3330.96,0.00010958,2]
[407592690,1772559046120,-913.0,0.00010958,2]
[407592692,1772559046130,-500.0,0.00010958,2]
[407592694,1772559046139,-500.0,0.00010958,2]
[407592696,1772559046148,-1000.0,0.00010958,2]
[407592698,1772559046158,-500.0,0.00010958,2]
[407592700,1772559046172,-1239.82,0.00010958,2]
[407592702,1772559046181,-300.32196782,0.00010958,2]
[407592704,1772559046190,-500.0,0.00010958,2]
[407592706,1772559046200,-500.0,0.00010958,2]
[407592708,1772559046209,-500.0,0.00010958,2]
[407592710,1772559046218,-500.0,0.00010958,2]
[407592712,1772559046227,-500.0,0.00010958,2]
[407592714,1772559046239,-900.09,0.00010958,2]
[407592716,1772559046248,-500.0,0.00010958,2]
[407592718,1772559046258,-533.90572056,0.00010958,2]
[407592720,1772559046268,-2106.21,0.00010958,2]
[407592722,1772559046278,-500.0,0.00010958,2]
[407592724,1772559046287,-1842.21,0.00010958,2]
[407592726,1772559046297,-502.34,0.00010958,2]
[407592728,1772559046306,-500.0,0.00010958,2]
[407592730,1772559046316,-500.0,0.00010958,2]
[407592732,1772559046325,-3835.26,0.00010958,2]
[407592734,1772559046336,-151.0,0.00010958,2]
[407592736,1772559046346,-698.15,0.00010958,2]
[407592738,1772559046355,-151.0,0.00010958,2]
[407592740,1772559046365,-2502.16,0.00010958,2]
[407592742,1772559046375,-151.0,0.00010958,2]
[407592744,1772559046384,-541.13,0.00010958,2]
[407592746,1772559046394,-151.0,0.00010958,2]
[407592748,1772559046403,-500.0,0.00010958,2]
[407592750,1772559046412,-500.0,0.00010958,2]
[407592752,1772559046422,-500.0,0.00010958,2]
[407592754,1772559046431,-7236.19,0.00010958,2]
[407592756,1772559046441,-500.0,0.00010958,2]
[407592758,1772559046451,-215.74763496,0.00010958,2]
[407592760,1772559046460,-500.0,0.00010958,2]
[407592762,1772559046470,-500.0,0.00010958,2]
[407592764,1772559046479,-500.0,0.00010958,2]
[407592766,1772559046488,-500.0,0.00010958,2]
[407592768,1772559046498,-500.0,0.00010958,2]
[407592770,1772559046509,-2819.46,0.00010958,2]
[407592772,1772559046520,-500.0,0.00010958,2]
[407592774,1772559046530,-500.0,0.00010958,2]
[407592776,1772559046539,-500.0,0.00010958,2]
[407592778,1772559046553,-500.0,0.00010958,2]
[407592781,1772559046565,-500.0,0.00010958,2]
[407592783,1772559046575,-1142.79,0.00010958,2]
[407592785,1772559046588,-5191.01,0.00010958,2]
[407592787,1772559046601,-533.61,0.00010958,2]
[407592789,1772559046610,-517.43,0.00010958,2]
[407592790,1772559046620,-16750.02,0.00010958,2]
[407592792,1772559046630,-530.25,0.00010958,2]
[407592794,1772559046639,-500.0,0.00010958,2]
[407592796,1772559046649,-3864.73,0.00010958,2]
[407592798,1772559046658,-8257.93,0.00010958,2]
[407592800,1772559046668,-1050.88,0.00010958,2]
[407592802,1772559046678,-500.0,0.00010958,2]
[407592804,1772559046687,-1828.57,0.00010958,2]
[407592806,1772559046697,-500.0,0.00010958,2]
[407592808,1772559046706,-500.0,0.00010958,2]
[407592810,1772559046715,-500.44065058,0.00010958,2]
[407592812,1772559046724,-4471.54,0.00010958,2]
[407592815,1772559046735,-500.0,0.00010958,2]
[407592817,1772559046745,-1045.0,0.00010958,2]
[407592819,1772559046754,-500.57393147,0.00010958,2]
[407592821,1772559046763,-1818.05,0.00010958,2]
[407592823,1772559046772,-500.0,0.00010958,2]
[407592825,1772559046781,-500.0,0.00010958,2]
[407592827,1772559046790,-875.53,0.00010958,2]
[407592829,1772559046801,-17698.87,0.00010958,2]
[407592831,1772559046811,-500.0,0.00010958,2]
[407592833,1772559046820,-3428.02,0.00010958,2]
[407592835,1772559046830,-500.0,0.00010958,2]
[407592837,1772559046840,-500.0,0.00010958,2]
[407592838,1772559046849,-500.0,0.00010958,2]
[407592841,1772559046859,-564.38,0.00010958,2]
[407592843,1772559046868,-532.09797901,0.00010958,2]
[407592845,1772559046878,-1250.12,0.00010958,2]
[407592847,1772559046887,-500.0,0.00010958,2]
[407592849,1772559046897,-500.0,0.00010958,2]
[407592851,1772559046906,-2429.66,0.00010958,2]
[407592853,1772559046914,-500.0,0.00010958,2]
[407592855,1772559046923,-500.0,0.00010958,2]
[407592857,1772559046933,-500.0,0.00010958,2]
[407592859,1772559046942,-2810.81,0.00010958,2]
[407592861,1772559046952,-795.45,0.00010958,2]
[407592863,1772559046961,-7025.21,0.00010958,2]
[407592865,1772559046971,-500.0,0.00010958,2]
[407592867,1772559046980,-2520.71,0.00010958,2]
[407592869,1772559046989,-33213.63263254,0.00010958,2]
[407592947,1772559047739,-4060.62,0.00010958,2]
[407593027,1772559048648,-383.71407802,0.00010958,2]
[407593038,1772559048748,-6643.55381724,0.00010958,2]
[407593128,1772559049614,-2413.4994722,0.00010958,2]
[407593130,1772559049624,-500.0,0.00010958,2]
[407593132,1772559049634,-956.7,0.00010958,2]
[407593134,1772559049644,-282.06103291,0.00010958,2]
[407593282,1772559666921,3334.0719965,9.502e-05,2]
[407593284,1772559844008,818.18850861,9.502e-05,2]
[407593337,1772560232210,-376.5556878,9.773e-05,2]
[407593339,1772560232220,-445.4496217,9.773e-05,2]
[407593341,1772560232228,-1943.40866079,0.00010462,3]
[407593343,1772560232238,-2761.3313535,0.00010494,2]
[407593345,1772560232247,-300.0,0.00010535,2]
[407593347,1772560232258,-300.0,0.00010535,2]
[407593349,1772560232267,-1200.0,0.00010536,2]
[407593351,1772560232276,-215.34034197,0.00010537,2]
[407593451,1772560238359,-1947.16706993,0.00010537,2]
[407593453,1772560238371,-638.0,0.00010537,2]
[407593456,1772560238381,-2186.0,0.00010537,2]
[407593458,1772560238390,-1389.0,0.00010537,2]
[407593459,1772560238400,-432.0,0.00010537,2]
[407593460,1772560238410,-730.0,0.00010537,2]
[407593462,1772560238420,-153.735,0.00010537,2]
[407593463,1772560238430,-151.208,0.00010537,2]
[407593464,1772560238439,-3134.689546,0.00010683,2]
[407593465,1772560238449,-500.0,0.000107,2]
[407593466,1772560238458,-500.0,0.000107,2]
[407593467,1772560238468,-500.0,0.000107,2]
[407593468,1772560238477,-594.37203075,0.000107,2]
[407593469,1772560238487,-500.0,0.000107,2]
[407593470,1772560238497,-676.62375412,0.000107,2]
[407593471,1772560238507,-326.54395201,0.00010739,2]
[407593472,1772560238518,-523.20385501,0.000108,3]
[407593473,1772560238529,-487.0,0.000108,2]
[407593474,1772560238539,-1113.18499182,0.00010858,2]
[407593475,1772560238548,-315.86,0.00010859,2]
[407593476,1772560238558,-152.462,0.00010949,2]
[407593477,1772560238568,-500.0,0.0001095,2]
[407593478,1772560238576,-483.98367396,0.0001095,2]
[407593479,1772560238588,-194.15845755,0.0001095,2]
[407593480,1772560238598,-1957.856,0.00010951,2]
[407593481,1772560238608,-500.0,0.00010951,2]
[407593482,1772560238618,-500.0,0.00010951,2]
[407593483,1772560238627,-500.0,0.00010951,2]
[407593484,1772560238636,-500.0,0.00010951,2]
[407593485,1772560238646,-500.0,0.00010951,2]
[407593486,1772560238655,-500.0,0.00010951,2]
[407593487,1772560238665,-500.0,0.00010951,2]
[407593488,1772560238674,-500.0,0.00010951,2]
[407593489,1772560238684,-500.0,0.00010951,2]
[407593490,1772560238694,-500.0,0.00010951,2]
[407593491,1772560238703,-500.0,0.00010951,2]
[407593492,1772560238714,-500.0,0.00010951,2]
[407593493,1772560238723,-500.0,0.00010951,2]
[407593494,1772560238733,-500.0,0.00010951,2]
[407593495,1772560238743,-500.0,0.00010951,2]
[407593496,1772560238752,-151.0,0.00010951,2]
[407593497,1772560238762,-250.0,0.00010951,2]
[407593498,1772560238772,-500.0,0.00010951,2]
[407593499,1772560238782,-170.07839991,0.00010951,2]
[407593500,1772560238793,-250.0,0.00010951,2]
[407593501,1772560238803,-168.3888056,0.00010951,2]
[407593502,1772560238813,-500.0,0.00010951,2]
[407593503,1772560238823,-250.0,0.00010951,2]
[407593504,1772560238834,-174.61919141,0.00010951,2]
[407593505,1772560238847,-500.0,0.00010951,2]
[407593506,1772560238857,-250.0,0.00010951,2]
[407593507,1772560238867,-181.08010149,0.00010951,2]
[407593508,1772560238877,-500.0,0.00010951,2]
[407593509,1772560238887,-250.0,0.00010951,2]
[407593510,1772560238897,-187.78006525,0.00010951,2]
[407593511,1772560238906,-500.0,0.00010951,2]
[407593512,1772560238916,-250.0,0.00010951,2]
[407593513,1772560238926,-194.72792766,0.00010951,2]
[407593514,1772560238936,-500.0,0.00010951,2]
[407593515,1772560238946,-151.0,0.00010951,2]
[407593516,1772560238958,-201.93286099,0.00010951,2]
[407593517,1772560238968,-500.0,0.00010951,2]
[407593518,1772560238978,-151.0,0.00010951,2]
[407593519,1772560238987,-209.40437684,0.00010951,2]
[407593520,1772560238998,-151.0,0.00010951,2]
[407593521,1772560239007,-217.15233878,0.00010951,2]
[407593522,1772560239017,-151.0,0.00010951,2]
[407593523,1772560239030,-225.18697532,0.00010951,2]
[407593524,1772560239040,-151.0,0.00010951,2]
[407593525,1772560239050,-250.0,0.00010951,2]
[407593526,1772560239059,-151.0,0.00010951,2]
[407593527,1772560239069,-233.51889341,0.00010951,2]
[407593528,1772560239078,-242.15909246,0.00010951,2]
[407593529,1772560239088,-251.11897888,0.00010951,2]
[407593530,1772560239098,-151.0,0.00010951,2]
[407593531,1772560239107,-151.0,0.00010951,2]
[407593532,1772560239116,-250.0,0.00010951,2]
[407593533,1772560239126,-151.0,0.00010951,2]
[407593534,1772560239136,-260.4103811,0.00010951,2]
[407593535,1772560239146,-151.0,0.00010951,2]
[407593536,1772560239155,-2230.315306,0.00010951,2]
[407593537,1772560239165,-151.0,0.00010951,2]
[407593538,1772560239176,-270.0455652,0.00010951,2]
[407593539,1772560239186,-151.0,0.00010951,2]
[407593540,1772560239196,-280.03725112,0.00010951,2]
[407593541,1772560239210,-151.0,0.00010951,2]
[407593542,1772560239220,-250.0,0.00010951,2]
[407593543,1772560239230,-557.5788265,0.00010951,2]
[407593544,1772560239241,-290.39862941,0.00010951,2]
[407593545,1772560239252,-151.0,0.00010951,2]
[407593546,1772560239262,-250.0,0.00010951,2]
[407593547,1772560239272,-301.1433787,0.00010951,2]
[407593548,1772560239282,-250.0,0.00010951,2]
[407593549,1772560239291,-250.0,0.00010951,2]
[407593550,1772560239301,-250.0,0.00010951,2]
[407593551,1772560239311,-250.0,0.00010951,2]
[407593552,1772560239321,-385.20316875,0.00010951,2]
[407593553,1772560239334,-250.0,0.00010951,2]
[407593554,1772560239354,-250.0,0.00010951,2]
[407593555,1772560239363,-250.0,0.00010951,2]
[407593556,1772560239373,-156.587,0.00010951,2]
[407593557,1772560239382,-500.0,0.00010952,2]
[407593558,1772560239392,-323.7668604,0.00010957,2]
[407593559,1772560239402,-1289.33709651,0.00010958,2]
[407593560,1772560239412,-500.0,0.00010958,2]
[407593561,1772560239424,-500.0,0.00010958,2]
[407593562,1772560239446,-2244.165406,0.00010958,2]
[407593563,1772560239466,-500.0,0.00010958,2]
[407593564,1772560239476,-500.0,0.00010958,2]
[407593565,1772560239486,-16452.0062898,0.00010958,2]
[407593566,1772560239495,-538.00466912,0.00010958,2]
[407593567,1772560239505,-500.0,0.00010958,2]
[407593568,1772560239516,-833.39346069,0.00010958,2]
[407593569,1772560239527,-500.0,0.00010958,2]
[407593570,1772560239539,-151.0,0.00010958,2]
[407593571,1772560239549,-500.0,0.00010958,2]
[407593572,1772560239560,-537.28620594,0.00010958,2]
[407593573,1772560239569,-500.0,0.00010958,2]
[407593574,1772560239579,-500.0,0.00010958,2]
[407593575,1772560239589,-500.0,0.00010958,2]
[407593576,1772560239599,-500.0,0.00010958,2]
[407593577,1772560239609,-500.0,0.00010958,2]
[407593578,1772560239619,-520.85,0.00010958,2]
[407593579,1772560239630,-157.81735734,0.00010958,2]
[407593580,1772560239640,-500.0,0.00010958,2]
[407593581,1772560239650,-1380.68,0.00010958,2]
[407593582,1772560239661,-1214.81,0.00010958,2]
[407593583,1772560239671,-2014.58921329,0.00010958,2]
[407593584,1772560239681,-2898.10745867,0.00010958,2]
[407593585,1772560239690,-560.68,0.00010958,2]
[407593586,1772560239701,-500.0,0.00010958,2]
[407593587,1772560239711,-606.39,0.00010958,2]
[407593588,1772560239720,-623.43299529,0.00010958,2]
[407593589,1772560239730,-500.0,0.00010958,2]
[407593590,1772560239739,-581.09,0.00010958,2]
[407593591,1772560239749,-500.0,0.00010958,2]
[407593592,1772560239759,-500.0,0.00010958,2]
[407593593,1772560239768,-500.0,0.00010958,2]
[407593594,1772560239777,-1370.27,0.00010958,2]
[407593595,1772560239787,-500.0,0.00010958,2]
[407593596,1772560239797,-500.0,0.00010958,2]
[407593597,1772560239807,-500.0,0.00010958,2]
[407593598,1772560239816,-561.94,0.00010958,2]
[407593599,1772560239826,-1768.88,0.00010958,2]
[407593600,1772560239836,-654.68,0.00010958,2]
[407593601,1772560239846,-500.0,0.00010958,2]
[407593602,1772560239855,-807.74,0.00010958,2]
[407593603,1772560239865,-500.0,0.00010958,2]
[407593604,1772560239874,-2108.71,0.00010958,2]
[407593605,1772560239884,-500.0,0.00010958,2]
[407593606,1772560239893,-500.0,0.00010958,2]
[407593607,1772560239903,-500.0,0.00010958,2]
[407593608,1772560239912,-500.0,0.00010958,2]
[407593609,1772560239924,-920.15,0.00010958,2]
[407593610,1772560239933,-1123.09,0.00010958,2]
[407593611,1772560239943,-500.0,0.00010958,2]
[407593612,1772560239957,-500.0,0.00010958,2]
[407593613,1772560239967,-994.7498084,0.00010958,2]
[407593614,1772560239976,-652.17,0.00010958,2]
[407593615,1772560239986,-1512.89,0.00010958,2]
[407593616,1772560239998,-557.97,0.00010958,2]
[407593617,1772560240008,-500.0,0.00010958,2]
[407593618,1772560240018,-500.0,0.00010958,2]
[407593619,1772560240028,-500.0,0.00010958,2]
[407593620,1772560240038,-500.0,0.00010958,2]
[407593621,1772560240047,-500.0,0.00010958,2]
[407593622,1772560240057,-500.0,0.00010958,2]
[407593623,1772560240066,-500.0,0.00010958,2]
[407593624,1772560240076,-506.47,0.00010958,2]
[407593625,1772560240085,-500.0,0.00010958,2]
[407593626,1772560240095,-500.0,0.00010958,2]
[407593627,1772560240104,-500.0,0.00010958,2]
[407593628,1772560240114,-500.0,0.00010958,2]
[407593629,1772560240124,-610.85064273,0.00010958,2]
[407593630,1772560240142,-849.23935727,0.00010958,2]
[407593631,1772560240152,-387.49777208,0.00010958,2]
[407593633,1772560240163,-112.50222792,0.00010958,2]
[407593634,1772560240173,-500.0,0.00010958,2]
[407593635,1772560240420,-1112.59,0.00010958,2]
[407593636,1772560240430,-557.4302857,0.00010958,2]
[407593637,1772560240440,-500.0,0.00010958,2]
[407593638,1772560240454,-2166.3,0.00010958,2]
[407593639,1772560240463,-650.24,0.00010958,2]
[407593640,1772560240473,-549.81,0.00010958,2]
[407593641,1772560240483,-1055.53,0.00010958,2]
[407593642,1772560240492,-500.0,0.00010958,2]
[407593643,1772560240501,-605.38,0.00010958,2]
[407593644,1772560240511,-500.0,0.00010958,2]
[407593645,1772560240521,-500.0,0.00010958,2]
[407593646,1772560240531,-3003.78,0.00010958,2]
[407593647,1772560240542,-864.34,0.00010958,2]
[407593648,1772560240551,-531.87034266,0.00010958,2]
[407593649,1772560240561,-987.97,0.00010958,2]
[407593650,1772560240574,-500.0,0.00010958,2]
[407593651,1772560240595,-2344.63,0.00010958,2]
[407593652,1772560240607,-500.0,0.00010958,2]
[407593653,1772560240616,-500.0,0.00010958,2]
[407593654,1772560240626,-500.0,0.00010958,2]
[407593656,1772560240635,-1311.19,0.00010958,2]
[407593658,1772560240645,-500.0,0.00010958,2]
[407593660,1772560240654,-2261.3,0.00010958,2]
[407593662,1772560240664,-500.0,0.00010958,2]
[407593664,1772560240673,-500.0,0.00010958,2]
[407593666,1772560240683,-1559.27,0.00010958,2]
[407593668,1772560240692,-500.0,0.00010958,2]
[407593670,1772560240701,-2330.28,0.00010958,2]
[407593672,1772560240710,-426.94959193,0.00010958,2]
[407593674,1772560240719,-500.0,0.00010958,2]
[407593676,1772560240729,-647.12,0.00010958,2]
[407593678,1772560240738,-917.33,0.00010958,2]
[407593680,1772560240748,-500.0,0.00010958,2]
[407593682,1772560240757,-500.0,0.00010958,2]
[407593684,1772560240766,-524.35,0.00010958,2]
[407593686,1772560240776,-500.0,0.00010958,2]
[407593687,1772560240786,-846.42,0.00010958,2]
[407593690,1772560240795,-500.0,0.00010958,2]
[407593692,1772560240805,-859.74,0.00010958,2]
[407593694,1772560240815,-500.0,0.00010958,2]
[407593696,1772560240824,-586.6783962,0.00010958,2]
[407593697,1772560240833,-951.46,0.00010958,2]
[407593700,1772560240845,-519.04,0.00010958,2]
[407593701,1772560240855,-540.77,0.00010958,2]
[407593703,1772560240864,-500.0,0.00010958,2]
[407593705,1772560240874,-500.0,0.00010958,2]
[407593707,1772560240883,-500.0,0.00010958,2]
[407593709,1772560240892,-500.0,0.00010958,2]
[407593711,1772560240902,-500.0,0.00010958,2]
[407593713,1772560240911,-500.0,0.00010958,2]
[407593715,1772560240921,-596.25697284,0.00010958,2]
[407593717,1772560240929,-500.0,0.00010958,2]
[407593719,1772560240939,-500.0,0.00010958,2]
[407593722,1772560240954,-500.0,0.00010958,2]
[407593724,1772560240964,-502.05,0.00010958,2]
[407593726,1772560240974,-500.0,0.00010958,2]
[407593728,1772560240984,-500.0,0.00010958,2]
[407593729,1772560240995,-500.0,0.00010958,2]
[407593731,1772560241004,-500.0,0.00010958,2]
[407593733,1772560241014,-500.0,0.00010958,2]
[407593735,1772560241024,-500.0,0.00010958,2]
[407593738,1772560241034,-841.47,0.00010958,2]
[407593740,1772560241045,-889.73,0.00010958,2]
[407593741,1772560241054,-500.0,0.00010958,2]
[407593744,1772560241064,-500.0,0.00010958,2]
[407593745,1772560241074,-500.0,0.00010958,2]
[407593747,1772560241083,-510.44,0.00010958,2]
[407593749,1772560241095,-507.05,0.00010958,2]
[407593751,1772560241106,-500.0,0.00010958,2]
[407593753,1772560241116,-500.0,0.00010958,2]
[407593755,1772560241125,-500.0,0.00010958,2]
[407593757,1772560241135,-551.53258521,0.00010958,2]
[407593759,1772560241145,-500.0,0.00010958,2]
[407593761,1772560241155,-500.0,0.00010958,2]
[407593763,1772560241165,-500.0,0.00010958,2]
[407593765,1772560241175,-1114.61,0.00010958,2]
[407593767,1772560241184,-814.86,0.00010958,2]
[407593769,1772560241193,-200.07280992,0.00010958,2]